Cogmind - Beta 11.1 @@@ ROGUE MODE // 2022.06.13 @ 14:08:01 Player: Delirus Result: Self-destructed Performance ------------- Evolutions (1) 500 Regions Visited (3) 600 Robots Destroyed (17) 85 Value Destroyed (268) 268 Prototype IDs (0) 0 Alien Tech Used (0) 0 Bonus (0) 0 TOTAL SCORE: 1453 Bonus ------- None Cogmind --------- Core Integrity 327/400 Matter 300/300 Energy 100/100 System Corruption 0% Temperature Cool (9) Movement Hovering (60) Location -9/Materials Parts ------- > --- POWER (1) -------- (None) > --- PROPULSION (2) --- Hover Unit > --- UTILITY (4) ------ Sensor Array ECM Suite Hacking Suite > --- WEAPON (2) ------- Mace > --- INVENTORY (5) ---- Ion Engine Grenade Launcher Makeshift Hammer Stasis Trap (100%) Peak State ------------ > --- POWER ------------ Ion Engine > --- PROPULSION ------- Hover Unit Hover Unit > --- UTILITY ---------- Visual Processing Unit Hacking Suite > --- WEAPON ----------- Datajack Makeshift Hammer > --- INVENTORY -------- Wheel Sensor Array ECM Suite Grenade Launcher Mace [Rating: 13] Favorites ----------- Power Ion Engine Engine Ion Engine Propulsion Hover Unit Treads Light Treads Leg Aluminum Leg Wheel Wheel Hover Unit Hover Unit Utility Sensor Array Device Sensor Array Storage Medium Battery Processor Visual Processing Unit Hackware Hacking Suite Weapon Datajack Energy Gun Medium Laser Ballistic Gun Assault Rifle Impact Weapon Makeshift Hammer Special Melee Weapon Datajack Build | -11 -10 -10 -9 ------- Run | Scr Mat Min Mat Slots Evolved 2 | . . . 2 Power . | . . . . Propulsion . | . . . . Utility 2 | . . . 2 Weapon . | . . . . Parts Attached 21 | . 15 4 2 Power 1 | . . 1 . Engine 1 | . . 1 . Core . | . . . . Reactor . | . . . . Propulsion 5 | . 5 . . Treads 2 | . 2 . . Leg . | . . . . Wheel 1 | . 1 . . Hover 2 | . 2 . . Flight . | . . . . Utility 11 | . 8 2 1 Device 5 | . 3 1 1 Storage 4 | . 4 . . Processor 1 | . . 1 . Hackware 1 | . 1 . . Protection . | . . . . Artifact . | . . . . Weapon 4 | . 2 1 1 Energy Gun . | . . . . Energy Cannon . | . . . . Ballistic Gun . | . . . . Ballistic Cannon . | . . . . Launcher . | . . . . Special Weapon . | . . . . Impact Weapon 3 | . 1 1 1 Slashing Weapon . | . . . . Piercing Weapon . | . . . . Special Melee Weapon 1 | . 1 . . Unidentified Prototypes . | . . . . Parts Lost 3 | . . . 3 Power 1 | . . . 1 Propulsion 1 | . . . 1 Utility . | . . . . Weapon 1 | . . . 1 Highest Loss Streak 2 | . . . 2 To Critical Strikes . | . . . . Average Slot Usage (%) 95 | . 98 100 85 Engine 13 | . 14 14 11 Treads 4 | . 9 . . Leg 1 | . 3 . . Wheel 4 | . 9 . . Hover 14 | . 6 28 22 Device 10 | . 3 12 21 Storage 12 | . 22 . . Hackware 6 | . . 14 11 Energy Gun 5 | . 11 . . Ballistic Gun 5 | . 11 . . Impact Weapon 7 | . 2 14 11 Special Melee Weapon 6 | . 2 14 8 Naked Turns . | . . . . Heaviest Build 51 | 14 51 10 10 Greatest Support 20 | 20 20 12 12 Greatest Overweight (x) 5 | . 5 . . Average Overweight (x) 1 | . 2 . . Largest Inventory Capacity 20 | 8 20 5 5 Average Capacity 10 | 8 15 5 5 Most Carried 20 | 6 20 5 5 Average Carried 8 | 6 13 4 4 Final Capacity 8 | 8 5 5 5 Final Carried 6 | 6 5 5 4 Class Distribution -------------------- 63% | Mutant 36% | Scavenger-Mutant Dominant Class ---------------- Mutant | -10/Materials Scavenger-Mutant | -10/Mines Scavenger-Mutant | -9/Materials Resources | -11 -10 -10 -9 ----------- Run | Scr Mat Min Mat Matter Collected 549 | 200 289 50 10 Remotely . | . . . . Salvage Created 518 | . 365 75 78 Parts 27 | . 22 4 1 Haulers Intercepted 1 | . . . 1 Recyclers Shooed 3 | . 3 . . Parts Field Recycled . | . . . . Retrieved Matter . | . . . . Parts Self-Destructed . | . . . . Prevented . | . . . . Kills | -11 -10 -10 -9 ------- Run | Scr Mat Min Mat Combat Hostiles Destroyed 7 | . 7 . . Guns 7 | . 7 . . Classes Destroyed 7 | . 5 1 1 Worker 4 | . 3 . 1 Hauler 1 | . . . 1 Recycler 1 | . . 1 . Operator 1 | . 1 . . Watcher 3 | . 2 . 1 Swarmer 3 | . 3 . . Grunt 4 | . 4 . . Best Kill Streak 3 | . 3 1 1 Combat Bots Only 3 | . 3 . . Max Kills in Single Turn 2 | . 2 1 1 Gunslinging . | . . . . Exploded . | . . . . Melee . | . . . . Uniques/NPCs Destroyed . | . . . . Combat | -11 -10 -10 -9 -------- Run | Scr Mat Min Mat Damage Taken 569 | . 385 . 184 Core 144 | . 71 . 73 Absorbed by Shields . | . . . . Regen/Repaired (Parts) 356 | . 356 . . Core Remaining (%) 85 | 100 . 71 . Volleys Fired 34 | . 34 . . Largest 2 | . 2 . . Hottest 70 | . 70 . . Shots Fired 65 | . 65 . . Gun 65 | . 65 . . Cannon . | . . . . Launcher . | . . . . Special . | . . . . Kinetic 31 | . 31 . . Thermal 34 | . 34 . . Explosive . | . . . . Electromagnetic . | . . . . Robot Hit Streak 9 | . 9 . . Robot Miss Streak 3 | . 3 . . Penetration Max . | . . . . Secondary Targets 1 | . 1 . . Max Gunslinging Chain 1 | . 1 . . Shots Hit Robots 53 | . 43 1 9 Core Hits 22 | . 20 1 1 Critical Kills . | . . . . Critical Parts Destroyed . | . . . . Critical Strikes 1 | . 1 . . Burn 1 | . 1 . . Melee Attacks 47 | . 6 11 30 Impact 44 | . 3 11 30 Slashing . | . . . . Piercing . | . . . . Sneak Attacks 5 | . 2 1 2 Combat Hostiles . | . . . . Follow-up Attacks . | . . . . Damage Inflicted 1338 | . 695 129 514 Guns 504 | . 504 . . Cannons . | . . . . Explosions . | . . . . Melee 808 | . 165 129 514 Ramming 26 | . 26 . . Kinetic 244 | . 244 . . Thermal 260 | . 260 . . Explosive . | . . . . Electromagnetic . | . . . . Impact 808 | . 165 129 514 Slashing . | . . . . Piercing . | . . . . Highest Corruption . | . . . . Average Corruption . | . . . . Corruption Purged . | . . . . Corruption Blocked . | . . . . Overload Shots . | . . . . Overflow Damage 187 | . 105 . 82 Projectiles . | . . . . Explosions . | . . . . Melee 187 | . 105 . 82 Knockbacks 3 | . 2 . 1 Impact 3 | . 2 . 1 Kinetic . | . . . . Secondary . | . . . . Self-Inflicted Damage 12 | . 12 . . Shots . | . . . . Rammed 6 | . 6 . . Targets Rammed 6 | . 6 . . Kicked . | . . . . Crushed . | . . . . Highest Temperature 144 | . 144 . . Average Temperature 47 | . 47 . . Received Heat Transfer 147 | . 102 . 45 Siege Activations . | . . . . Robots Corrupted . | . . . . Combat Hostiles . | . . . . Parts Fried 9 | . 5 . 4 Impact Corruptions 8 | . 4 . 4 Robots Melted . | . . . . Combat Hostiles . | . . . . Parts Melted 1 | . 1 . . Heat Transferred 851 | . 851 . . Parts Sabotaged . | . . . . Parts Stolen . | . . . . Parts Stripped . | . . . . Power Chain Reactions . | . . . . Missiles Intercepted . | . . . . Alert | -11 -10 -10 -9 ------- Run | Scr Mat Min Mat Peak Influence 247 | . 247 23 236 Initial 12 | . . 12 5 Average 89 | . 95 13 142 Maximum Alert Level 1 | . 1 . 1 Low Security (%) 85 | 100 85 100 72 Level 1 14 | . 14 . 27 Level 2 . | . . . . Level 3 . | . . . . Level 4 . | . . . . Level 5 . | . . . . High Security . | . . . . Max Security . | . . . . Squads Dispatched . | . . . . Investigation . | . . . . Extermination . | . . . . Reinforcement . | . . . . Assault . | . . . . Garrison . | . . . . Intercept . | . . . . Searches Triggered . | . . . . Construction Impeded . | . . . . Haulers Reinforced . | . . . . Active Scanning Responses . | . . . . Cargo Convoy Interrupts . | . . . . Stealth | -11 -10 -10 -9 --------- Run | Scr Mat Min Mat Distress Signals 5 | . 2 . 3 Communications Jammed . | . . . . Distress Signals . | . . . . Times Spotted 43 | . 23 . 20 Peak Tracking Total 9 | . 4 . 9 Tactical Retreats 7 | . 1 . 6 Traps | -11 -10 -10 -9 ------- Run | Scr Mat Min Mat Traps Triggered . | . . . . Indirectly . | . . . . Trap Hack Attempts . | . . . . Triggered . | . . . . Disarmed . | . . . . Reprogrammed . | . . . . Reused . | . . . . Traps Extracted . | . . . . Installed . | . . . . Triggered . | . . . . Most Traps Carried 1 | . . 1 1 Machines | -11 -10 -10 -9 ---------- Run | Scr Mat Min Mat Machines Disabled . | . . . . Max in Single Turn . | . . . . Machines Sabotaged . | . . . . Garrisons Compromised . | . . . . Overloaded Fab Kills . | . . . . Hacking | -11 -10 -10 -9 --------- Run | Scr Mat Min Mat Machines Accessed 10 | . 9 . 1 Terminals 7 | . 6 . 1 Fabricators . | . . . . Repair Stations 1 | . 1 . . Recycling Units 2 | . 2 . . Scanalyzers . | . . . . Garrison Access . | . . . . Total Hacks 31 | . 26 . 5 Successful 18 | . 14 . 4 Failed 13 | . 12 . 1 Catastrophic 3 | . 3 . . Database Lockouts . | . . . . Manual 14 | . 10 . 4 Terminals 19 | . 14 . 5 Fabricators . | . . . . Repair Stations 2 | . 2 . . Recycling Units 10 | . 10 . . Scanalyzers . | . . . . Garrison Access . | . . . . Terminal Hacks 9 | . 5 . 4 Record 1 | . . . 1 Robot Analysis 1 | . 1 . . Branch Access Points 1 | . 1 . . Terminal Index 2 | . 1 . 1 Hauler Manifests 2 | . 1 . 1 Zone Layout 2 | . 1 . 1 Fabricator Hacks . | . . . . Repair Station Hacks 2 | . 2 . . Scan Component 1 | . 1 . . Repair 1 | . 1 . . Recycling Unit Hacks 7 | . 7 . . Report Inventory 4 | . 4 . . Retrieve Matter 1 | . 1 . . Retrieve Components 2 | . 2 . . Scanalyzer . | . . . . Garrison Access Hacks . | . . . . Unauthorized Hacks . | . . . . Terminals . | . . . . Fabricators . | . . . . Repair Stations . | . . . . Recycling Units . | . . . . Scanalyzers . | . . . . Garrison Access . | . . . . Data Cores Recovered 1 | . 1 . . Used 1 | . 1 . . Hacking Detections 7 | . 6 . 1 Full Trace Events 1 | . 1 . . Feedback Events . | . . . . Feedback Blocked . | . . . . Robot Schematics Acquired . | . . . . Robots Built . | . . . . Authchips . | . . . . Time . | . . . . Total Robot Build Rating . | . . . . Part Schematics Acquired . | . . . . Parts Built . | . . . . Authchips . | . . . . Time . | . . . . Total Part Build Rating . | . . . . Parts Repaired 1 | . 1 . . Time 26 | . 26 . . Parts Recycled . | . . . . Recycled Matter . | . . . . Retrieved Matter 141 | . 141 . . Retrieved Components 3 | . 3 . . Parts Scanalyzed . | . . . . Part Schematics Acquired . | . . . . Parts Damaged . | . . . . Bothacking | -11 -10 -10 -9 ------------ Run | Scr Mat Min Mat Used RIF Installer . | . . . . Robots Hacked . | . . . . Non-combat . | . . . . Combat . | . . . . Robot Hacks Applied . | . . . . Relay Couplers Released . | . . . . Fabnet Peak Effective % . | . . . . Robots Rewired . | . . . . Allies Hacked . | . . . . Hacks Repelled . | . . . . Allies | -11 -10 -10 -9 -------- Run | Scr Mat Min Mat Total Allies 1 | . . 1 . Largest Group 1 | . . 1 . Highest-Rated Group 31 | . . 31 . Highest-Rated Ally 31 | . . 31 . Total Orders . | . . . . Ally Attacks . | . . . . Total Damage . | . . . . Kills . | . . . . Allies Corrupted . | . . . . Allies Melted . | . . . . Intel | -11 -10 -10 -9 ------- Run | Scr Mat Min Mat Robot Analysis Total 1 | . 1 . . Derelict Logs Recovered 1 | . . 1 . Drone Launches . | . . . . Drone Recoveries . | . . . . Exploration | -11 -10 -10 -9 ------------- Run | Scr Mat Min Mat Turns Passed 2317 | 5 1217 496 599 Spaces Moved 2067 | 5 783 791 488 Core . | . . . . Treads . | . . . . Legs 118 | 5 113 . . Wheels 406 | . 406 . . Hover 1543 | . 264 791 488 Flight . | . . . . Fastest Speed 56 | 120 56 56 56 Average Speed 82 | 120 125 56 56 Slowest Speed 296 | 120 296 56 56 Overloaded Moves . | . . . . Propulsion Burnouts . | . . . . Robots Hopped . | . . . . Cave-ins Triggered . | . . . . Exploration Rate (%) 49 | 2 81 96 17 Regions Visited 3 Branch Regions 1 Pre-discovered Areas 1 | . . 1 . Known Exits Taken 1 | . 1 . . Unknown Exits Taken 2 | 1 . 1 . Scrap Searched 1 | . . 1 . Spaces Dug 17 | . . 9 8 Terrain Destroyed 17 | . . 9 8 Melee 17 | . . 9 8 Projectile . | . . . . AOE . | . . . . Terrain Rammed . | . . . . Walls Destroyed . | . . . . Machines Disabled . | . . . . Actions | -11 -10 -10 -9 --------- Run | Scr Mat Min Mat Total 2562 | 4 946 833 779 Wait 327 | . 50 18 259 Move 2064 | 4 782 790 488 Hop . | . . . . Pick Up 34 | . 29 5 . Fast Attach 2 | . 2 . . Attach 3 | . 2 . 1 Detach . | . . . . Swap 16 | . 11 4 1 Drop 29 | . 24 5 . Fire 34 | . 34 . . Melee 47 | . 6 11 30 Ram 6 | . 6 . . Kick . | . . . . Crush . | . . . . Escape Stasis . | . . . . Rewire . | . . . . Trap . | . . . . Miscellaneous . | . . . . Route ------- -11/Scrapyard -10/Materials (discovered 4 exits: *Mat x2 / *Min x2) -10/Mines (discovered 2 exits: *Mat x2) -9/Materials (discovered 2 exits: [Min] / [*Sto]) History --------- Turn | Location | Event 1 | -11/Scrapyard | Discovered new exit (range 3) 6 | -11/Scrapyard | Entered Materials 282 | -10/Materials | Repaired Hcp. Storage Unit 303 | -10/Materials | Build established: Mutant 521 | -10/Materials | Discovered new exit (range 16) 625 | -10/Materials | Identified exit to Mines 692 | -10/Materials | Discovered new exit (range 10) 1223 | -10/Materials | Entered Mines 1226 | -10/Mines | Received a Mining Laser from a helpful Derelict 1315 | -10/Mines | Learned location of Storage (-9) 1319 | -10/Mines | A weapon hastily lodged in a ceiling crevice suddenly fell to the ground 1361 | -10/Mines | Found a hidden stash of uninstalled traps 1685 | -10/Mines | Discovered new exit (range 11) 1714 | -10/Mines | Discovered new exit (range 3) 1719 | -10/Mines | Entered Materials 1719 | -9/Materials | Evolved 2 slots: Utility x2 1798 | -9/Materials | Build established: Scavenger-Mutant 2240 | -9/Materials | Discovered new exit (range 11) 2289 | -9/Materials | Discovered new exit (range 15) 2318 | -9/Materials | Self-destructed Last Messages --------------- 02190_ R-06 Scavenger collects Prototype Engine. 02192_ W-16 Scout sends out distress signal. 02193_ K-01 Serf collects debris. 02198_ Datajack destroyed. 02212_ U-05 Engineer builds a Wall. 02240_ Connecting with Terminal... >>Index(Terminals) Found 9 terminals. Downloaded coordinate data. 02240_ EXIT=FOUND >>Layout(Zone) Retrieving Zone 6A layout... Downloaded map data. 02280_ K-01 Serf cleans the Nuclear Reactor. 02289_ EXIT=FOUND 02295_ K-01 Serf cleans the Nuclear Reactor. 02313_ K-01 Serf cleans the Terminal. 02315_ Hover Unit destroyed. 02315_ S-10 Pest destroyed. 02318_ Lgt. Ion Engine destroyed. Map ----- +----------------------------------------------------+ | ??????????????????????????????????????????????# # | | ??????????????????????????????????????????????### | | ????????????????????????????????????????????????# | | ????????????????????????????????????????????????# | | ????????????????????????????????????????????????# | | ??????????????????????? ????????????????????????# | | ????????????????????? < ???????????????????##??# | | ???? # # #???# ### #??????#### ### | | ???? # # #???# #?# #??????# # | | ???? ###### #???## ##?#######??????#! # | | ????##+###### ###### #???????????????# # | | ???? !#???????????????# == # | | ???? #???????????????# == # | | ???? """ !##??????????????# # | | ????#### """ g #???????######## # | | ???????# """ #???????# # # | | ???????# #???????# """ # + | | ???????# #???????# """ # # | | ????#####+### bY#???????# """ # "T" # | | ???? # #########;#???????# # """ # | | ???? # ? # ? #???????# # # | | ???? # # """ #???????####+########## | | ???? + + "T" #???????# ? % | | ????""" """ # # """ #???????# | | ????""" """ # # """ ######### | | ????""" """ # # """@; # ############ | | ???? # ?# k #! *[]# #??????????? | | ????######### # # =%s # #??????????? | | ????????????# ########### """"" # ############ | | ???????????## ####??????# """"" # | | ???????????# ? "#??????# """"" + | | ???????????# ? ? ""#??????# """"" # | | ???????????# ? #??????# """"" # ############ | | ???????????# < ""#??????# """"" # #??????????? | | ???????????# #??????# """"" # #??????????? | | ???????????# ""#??????# # #??????????? | | ???????????# "#??????######### #??????????? | | ?????######## ########??????????# #??????????? | | ??????????????????????????????????# #??????????? | | ??????????????????????????????????# #??????????? | | ??????????????????????????????????# #??????????? | | ??????????????????????????????????# #??????????? | | ??????????????????????????????????# #??????????? | | ??????????????????????????????????# #??????????? | | ??????????????????????????????????#*[ #??????????? | | ??????????????????????????????????#%* #??????????? | | ??????????????????????????????????# #??????????? | | ??????????????????????????????????# T??????????? | | ??????????????????????????????????# ##?????????? | | ??????????????????????????????????# #??????????? | +----------------------------------------------------+ Best States ------------- Heat Dissipation 28 Energy Generation 10 Energy Capacity 400 Matter Stores 300 Matter Capacity 300 Sight Range 18 Robot Scan Range 14 Terrain Scan Density 10 ECM Strength 1 Evasion (%) 55 Recoil Reduction 1 Offensive Hacking 10 Item Schematics ----------------- None Robot Schematics ------------------ None Fabricated ------------ Nothing Alien Tech Used ----------------- None Achievements -------------- Dynamic Key Challenges ------------ None Game ------ Seed CentriumGuidanceScreen Manual? 0 Play Time 00:33:59 Cumulative 12.2 hours Start 2022.06.13 @ 13:33:18 End 2022.06.13 @ 14:08:01 Sessions 1 Manual Loads 0 Difficulty Rogue Special Mode None Game No. 17 Rogue 17 Adventurer 0 Explorer 0 Win Type - Total 0 Types 0/0/0/0/0/0/0/0/0 Lore% 4 Gallery% 15 Achievement% 16 Wizard Run 0 Options --------- ASCII 0 Keyboard 0 Movement Numpad Keybinds 0 Fullscreen 1 Font 12/Smallcaps Map View 83x54 Tactical HUD 1 Map Filters NONE Filters NONE Steam 1 RUN: fe89509b-eae9-4f21-9e31-503292b9b968